{"text_format":"1","workbook":"xlsx","n_sheets":6,"sheets":["Technické pokyny","Oddíl 1 - ÚVOD","Oddíl 2 - POPIS","Oddíl 3 - HARMONOGRAM","Oddíl 4 - ROZPOČET","Oddíl 5 - ZÁVĚR"],"not_rendered":{"charts":0,"images":3,"macros":1,"external_links":0,"defined_names":6,"comments":0,"pivot_tables":0},"unopened":[],"bounds":{"document_bytes":16777216,"sheet_cells":100000,"rows_first":2000,"rows_last":500,"rows_between":2000,"halvings":0,"cell_chars":16384,"cell_head_chars":4096},"cells_cut":0,"cells_raw":0,"read":"whole","date_system":"1900"}

{"sheet":"Technické pokyny","index":0,"n_rows":0,"n_cols":0,"rows_kept":0,"cut":false,"hidden":false,"merged":[]}

{"sheet":"Oddíl 1 - ÚVOD","index":1,"n_rows":27,"n_cols":21,"rows_kept":27,"cut":false,"hidden":false,"merged":[[23,1,23,13],[22,14,22,19],[23,14,23,19],[25,0,27,0],[25,1,25,19],[26,1,26,19],[27,1,27,19],[19,0,21,0],[19,1,19,19],[20,1,20,19],[21,1,21,19],[22,1,22,13],[9,8,9,19],[10,8,10,19],[11,8,11,19],[12,8,12,19],[13,8,13,19],[10,4,10,7],[15,8,15,19],[16,8,16,19],[14,4,14,7],[15,4,15,7],[16,4,16,7],[13,4,13,7],[9,1,16,3],[0,6,0,14],[2,3,2,17],[3,3,3,17],[11,4,11,7],[12,4,12,7],[8,1,8,7],[8,8,8,19],[5,1,5,7],[6,1,6,7],[7,1,7,7],[7,8,7,19],[5,8,5,19],[6,8,6,19],[14,8,14,19],[9,4,9,7]]}
[]
[]
[null,null,null,"ŽÁDOST  O  POSKYTNUTÍ  PODPORY"]
[null,null,null,"z  grantového systému pro diakonické \na rozvojové projekty ČCE pro rok 2018"]
[]
[null,"Evidenční číslo\n(žadatel nevyplňuje)"]
[null,"Název grantového programu",null,null,null,null,null,null,"Evangelické tábory pro děti a mládež 2018"]
[null,"Název projektu"]
[null,"Lokalizace projektu\n(Město/obec, sbor, seniorát)"]
[null,"Žadatel",null,null,"Úplný název"]
[null,null,null,null,"Sídlo žadatele\n(ulice, obec, PSČ)"]
[null,null,null,null,"IČ"]
[null,null,null,null,"Právní status"]
[null,null,null,null,"Bank. spojení (název banky, č. účtu)"]
[null,null,null,null,"Tel., Fax, E-mail"]
[null,null,null,null,"Statutární zástupci"]
[null,null,null,null,"Kontaktní osoba"]
[]
[]
["@^%#7","1. Stručná charakteristika činnosti žadatele"]
[null,"(Sbory nevyplňují)"]
[]
[null,"Je žadatel plátcem DPH?",null,null,null,null,null,null,null,null,null,null,null,null,"Prosím vyberte:"]
[null,"Má žadatel nárok na odpočet DPH?",null,null,null,null,null,null,null,null,null,null,null,null,"Prosím vyberte:",null,null,null,null,null,"Ano"]
[null,null,null,null,null,null,null,null,null,null,null,null,null,null,null,null,null,null,null,null,"Ne"]
[null,"2. Žádost zpracoval:"]
[null,"(Jméno, název instituce, kontaktní údaje)"]

{"sheet":"Oddíl 2 - POPIS","index":2,"n_rows":24,"n_cols":15,"rows_kept":24,"cut":false,"hidden":false,"merged":[[1,0,3,0],[1,1,1,19],[3,1,3,19],[15,9,15,12],[19,14,19,15],[19,1,19,8],[19,9,19,12],[15,14,15,15],[5,0,7,0],[5,1,5,19],[7,1,7,19],[9,0,11,0],[9,1,9,19],[11,1,11,19],[10,1,10,8],[10,9,10,12],[10,14,10,15],[22,0,24,0],[22,1,22,19],[24,1,24,19],[23,1,23,8],[23,9,23,12],[23,14,23,15],[14,0,16,0],[14,1,14,19],[16,1,16,19],[18,0,20,0],[18,1,18,19],[20,1,20,19],[15,1,15,8],[2,1,2,8],[2,9,2,12],[2,14,2,15],[6,1,6,8],[6,9,6,12],[6,14,6,15]]}
[]
[null,"3. Odůvodnění projektu"]
[null,{"$f":"IF(LEN(B4)>2000,\"PŘÍLIŠ MNOHO ZNAKŮ, MAXIMUM 2000!\",\"Maximálně 2000 znaků\")","v":"Maximálně 2000 znaků"},null,null,null,null,null,null,null,"Aktuální délka:",null,null,null,{"$f":"LEN(B4)","v":0},"znaků"]
[]
[]
[null,"4. Cíle projektu, cílové skupiny"]
[null,{"$f":"IF(LEN(B8)>1500,\"PŘÍLIŠ MNOHO ZNAKŮ, MAXIMUM 1500!\",\"Maximálně 1500 znaků\")","v":"Maximálně 1500 znaků"},null,null,null,null,null,null,null,"Aktuální délka:",null,null,null,{"$f":"LEN(B8)","v":0},"znaků"]
[]
[]
[null,"5.  Popis projektu"]
[null,{"$f":"IF(LEN(B12)>3000,\"PŘÍLIŠ MNOHO ZNAKŮ, MAXIMUM 3000!\",\"Maximálně 3000 znaků\")","v":"Maximálně 3000 znaků"},null,null,null,null,null,null,null,"Aktuální délka:",null,null,null,{"$f":"LEN(B12)","v":0},"znaků"]
[]
[]
[]
[null,"6.  Výstupy projektu"]
[null,{"$f":"IF(LEN(B17)>1500,\"PŘÍLIŠ MNOHO ZNAKŮ, MAXIMUM 1500!\",\"Maximálně 1500 znaků\")","v":"Maximálně 1500 znaků"},null,null,null,null,null,null,null,"Aktuální délka:",null,null,null,{"$f":"LEN(B17)","v":0},"znaků"]
[]
[]
[null,"7.  Dlouhodobé náklady vyvolané realizací projektu a jejich pokrytí"]
[null,{"$f":"IF(LEN(B21)>1500,\"PŘÍLIŠ MNOHO ZNAKŮ, MAXIMUM 1500!\",\"Maximálně 1500 znaků\")","v":"Maximálně 1500 znaků"},null,null,null,null,null,null,null,"Aktuální délka:",null,null,null,{"$f":"LEN(B21)","v":0},"znaků"]
[]
[]
[null,"8.  Organizační a odborné zabezpečení projektu "]
[null,{"$f":"IF(LEN(B25)>1500,\"PŘÍLIŠ MNOHO ZNAKŮ, MAXIMUM 1500!\",\"Maximálně 1500 znaků\")","v":"Maximálně 1500 znaků"},null,null,null,null,null,null,null,"Aktuální délka:",null,null,null,{"$f":"LEN(B25)","v":0},"znaků"]

{"sheet":"Oddíl 3 - HARMONOGRAM","index":3,"n_rows":15,"n_cols":22,"rows_kept":15,"cut":false,"hidden":false,"merged":[[14,1,14,21],[15,1,15,21],[1,1,1,21],[12,1,12,5],[2,1,2,5],[3,1,3,5],[4,1,4,5],[5,1,5,5],[6,1,6,5],[11,1,11,5],[7,1,7,5],[8,1,8,5],[9,1,9,5],[10,1,10,5]]}
[]
[null,"9.  Časový harmonogram realizace projektu - začátek/ukončení projektu"]
[null,"Aktivity projektu",null,null,null,null,"2017-09-01","2017-10-01","2017-11-01","2017-12-01","2018-01-01","2018-02-01","2018-03-01","2018-04-01","2018-05-01","2018-06-01","2018-07-01","2018-08-01","2018-09-01","2018-10-01","2018-11-01","2018-12-01"]
[null,"Podání žádosti",null,null,null,null,"X"]
[null,"Podpis smlouvy"]
[]
[]
[]
[]
[]
[]
[]
[null,"Závěrečná zpráva a vyúčtování"]
[null,"@^%#1"]
[null,"Prostor pro případné komentáře harmonogramu realizace (nepovinné)"]

{"sheet":"Oddíl 4 - ROZPOČET","index":4,"n_rows":59,"n_cols":21,"rows_kept":59,"cut":false,"hidden":false,"merged":[[1,1,1,20],[43,1,43,20],[56,1,56,20],[58,1,58,20],[55,1,55,20],[47,13,47,19],[48,13,48,19],[49,13,49,19],[50,13,50,19],[51,13,51,19],[52,13,52,19],[47,1,47,12],[9,3,9,12],[32,3,32,12],[32,13,32,15],[32,17,32,19],[33,3,33,12],[33,13,33,15],[33,17,33,19],[38,1,38,20],[34,3,34,12],[34,13,34,15],[34,17,34,19],[35,3,35,12],[26,3,26,12],[26,13,26,15],[26,17,26,19],[27,3,27,12],[20,3,20,12],[20,13,20,15],[20,17,20,19],[21,3,21,12],[36,13,36,16],[45,1,45,12],[46,1,46,12],[11,17,11,19],[12,3,12,12],[12,13,12,15],[12,17,12,19],[13,3,13,12],[13,13,13,15],[13,17,13,19],[14,3,14,12],[21,13,21,15],[21,17,21,19],[27,13,27,15],[27,17,27,19],[28,3,28,12],[28,13,28,15],[28,17,28,19],[24,3,24,12],[24,13,24,15],[24,17,24,19],[25,3,25,12],[25,13,25,15],[25,17,25,19],[41,1,41,20],[53,13,53,19],[53,1,53,12],[5,13,5,15],[6,13,6,15],[5,17,5,19],[6,17,6,19],[7,13,7,15],[7,17,7,19],[8,13,8,15],[8,17,8,19],[9,13,9,15],[9,17,9,19],[11,13,11,15],[48,1,48,12],[49,5,49,12],[49,1,52,4],[50,5,50,12],[51,5,51,12],[52,5,52,12],[5,1,5,12],[44,13,44,19],[45,13,45,19],[46,13,46,19],[44,1,44,12],[4,13,4,16],[4,17,4,20],[3,1,4,12],[23,1,23,12],[23,13,23,15],[23,17,23,19],[17,1,17,12],[17,13,17,15],[17,17,17,19],[18,3,18,12],[18,13,18,15],[18,17,18,19],[19,3,19,12],[19,13,19,15],[19,17,19,19],[11,1,11,12],[14,13,14,15],[14,17,14,19],[15,3,15,12],[15,13,15,15],[15,17,15,19],[6,3,6,12],[7,3,7,12],[8,3,8,12],[40,1,40,20],[29,1,29,12],[29,13,29,15],[29,17,29,19],[31,3,31,12],[31,13,31,15],[31,17,31,19],[30,1,30,12],[30,13,30,15],[30,17,30,19],[35,13,35,15],[35,17,35,19],[36,1,36,12],[37,1,37,12],[37,13,37,16],[37,18,37,19],[10,17,10,19],[16,3,16,12],[16,13,16,15],[16,17,16,19],[22,3,22,12],[22,13,22,15],[22,17,22,19],[10,3,10,12],[10,13,10,15]]}
[]
[null,"10.  Rozpočet projektu"]
[]
[null,"10A. Struktura rozpočtových výdajů \n          - pouze uznatelné výdaje"]
[null,null,null,null,null,null,null,null,null,null,null,null,null,"Náklady celkem",null,null,null,"Z toho požadováno z DaRP"]
["@^%#2"," I. Stavební práce (stavby, rekonstrukce, opravy)",null,null,null,null,null,null,null,null,null,null,null,{"$f":"ROUND(SUM(N7:P11),0)","v":0},null,null,"Kč",{"$f":"ROUND(SUM(R7:T11),0)","v":0},null,null,"Kč"]
[null,null,1.01,null,null,null,null,null,null,null,null,null,null,null,null,null,"Kč",{"$f":"ROUNDDOWN(N7*0.9,0)","v":0},null,null,"Kč"]
[null,null,{"$f":"C7+0.01","v":1.02},null,null,null,null,null,null,null,null,null,null,null,null,null,"Kč",{"$f":"ROUNDDOWN(N8*0.9,0)","v":0},null,null,"Kč"]
[null,null,{"$f":"C8+0.01","v":1.03},null,null,null,null,null,null,null,null,null,null,null,null,null,"Kč",0,null,null,"Kč"]
[null,null,{"$f":"C9+0.01","v":1.04},null,null,null,null,null,null,null,null,null,null,null,null,null,"Kč",0,null,null,"Kč"]
[null,null,{"$f":"C10+0.01","v":1.05},null,null,null,null,null,null,null,null,null,null,null,null,null,"Kč",0,null,null,"Kč"]
["@^%#3"," II. Vybavení (nábytek, zařízení, nádobí, přístroje, hračky, aj.)",null,null,null,null,null,null,null,null,null,null,null,{"$f":"ROUND(SUM(N13:P17),0)","v":0},null,null,"Kč",{"$f":"ROUND(SUM(R13:T17),0)","v":0},null,null,"Kč"]
[null,null,2.0099999999999998,null,null,null,null,null,null,null,null,null,null,null,null,null,"Kč",{"$f":"ROUNDDOWN(N13*0.9,0)","v":0},null,null,"Kč"]
[null,null,{"$f":"C13+0.01","v":2.0199999999999996},null,null,null,null,null,null,null,null,null,null,null,null,null,"Kč",0,null,null,"Kč"]
[null,null,{"$f":"C14+0.01","v":2.0299999999999994},null,null,null,null,null,null,null,null,null,null,null,null,null,"Kč",0,null,null,"Kč"]
[null,null,{"$f":"C15+0.01","v":2.0399999999999991},null,null,null,null,null,null,null,null,null,null,null,null,null,"Kč",0,null,null,"Kč"]
[null,null,{"$f":"C16+0.01","v":2.0499999999999989},null,null,null,null,null,null,null,null,null,null,null,null,null,"Kč",0,null,null,"Kč"]
["@^%#4"," III. Publikace, propagace (plakáty, brožury aj.)",null,null,null,null,null,null,null,null,null,null,null,{"$f":"ROUND(SUM(N19:P23),0)","v":0},null,null,"Kč",{"$f":"ROUND(SUM(R19:T23),0)","v":0},null,null,"Kč"]
[null,null,3.01,null,null,null,null,null,null,null,null,null,null,null,null,null,"Kč",{"$f":"ROUNDDOWN(N19*0.9,0)","v":0},null,null,"Kč"]
[null,null,{"$f":"C19+0.01","v":3.0199999999999996},null,null,null,null,null,null,null,null,null,null,null,null,null,"Kč",0,null,null,"Kč"]
[null,null,{"$f":"C20+0.01","v":3.0299999999999994},null,null,null,null,null,null,null,null,null,null,null,null,null,"Kč",0,null,null,"Kč"]
[null,null,{"$f":"C21+0.01","v":3.0399999999999991},null,null,null,null,null,null,null,null,null,null,null,null,null,"Kč",0,null,null,"Kč"]
[null,null,{"$f":"C22+0.01","v":3.0499999999999989},null,null,null,null,null,null,null,null,null,null,null,null,null,"Kč",0,null,null,"Kč"]
["@^%#5"," IV. Přednášející, vystupující, aj. (odměny, cestovné, atd.)",null,null,null,null,null,null,null,null,null,null,null,{"$f":"ROUND(SUM(N25:P29),0)","v":0},null,null,"Kč",{"$f":"ROUND(SUM(R25:T29),0)","v":0},null,null,"Kč"]
[null,null,4.01,null,null,null,null,null,null,null,null,null,null,null,null,null,"Kč",{"$f":"ROUNDDOWN(N25*0.9,0)","v":0},null,null,"Kč"]
[null,null,{"$f":"C25+0.01","v":4.0199999999999996},null,null,null,null,null,null,null,null,null,null,null,null,null,"Kč",0,null,null,"Kč"]
[null,null,{"$f":"C26+0.01","v":4.0299999999999994},null,null,null,null,null,null,null,null,null,null,null,null,null,"Kč",0,null,null,"Kč"]
[null,null,{"$f":"C27+0.01","v":4.0399999999999991},null,null,null,null,null,null,null,null,null,null,null,null,null,"Kč",0,null,null,"Kč"]
[null,null,{"$f":"C28+0.01","v":4.0499999999999989},null,null,null,null,null,null,null,null,null,null,null,null,null,"Kč",0,null,null,"Kč"]
[null,"V.   Administrace, koordinace (telekomunikace, kopírování kanc. materiál, příp. odměny za koordinaci) – uznatelné pouze jako paušální částka do výše max. 5% \nz celkových uznatelných výdajů (lze i nižší)",null,null,null,null,null,null,null,null,null,null,null,{"$f":"ROUNDDOWN(((N31+N24+N18+N12+N6)/0.95) - (N31+N24+N18+N12+N6),0)","v":0},null,null,"Kč",{"$f":"ROUNDDOWN(N30*0.9,0)","v":0},null,null,"Kč"]
["@^%#6"," VI. Jiné (specifikujte)",null,null,null,null,null,null,null,null,null,null,null,{"$f":"ROUND(SUM(N32:P36),0)","v":0},null,null,"Kč",{"$f":"ROUND(SUM(R32:T36),0)","v":0},null,null,"Kč"]
[null,null,6.01,null,null,null,null,null,null,null,null,null,null,null,null,null,"Kč",{"$f":"ROUNDDOWN(N32*0.9,0)","v":0},null,null,"Kč"]
[null,null,{"$f":"C32+0.01","v":6.02},null,null,null,null,null,null,null,null,null,null,null,null,null,"Kč",0,null,null,"Kč"]
[null,null,{"$f":"C33+0.01","v":6.0299999999999994},null,null,null,null,null,null,null,null,null,null,null,null,null,"Kč",0,null,null,"Kč"]
[null,null,{"$f":"C34+0.01","v":6.0399999999999991},null,null,null,null,null,null,null,null,null,null,null,null,null,"Kč",0,null,null,"Kč"]
[null,null,{"$f":"C35+0.01","v":6.0499999999999989},null,null,null,null,null,null,null,null,null,null,null,null,null,"Kč",0,null,null,"Kč"]
[null,"CELKOVÉ UZNATELNÉ VÝDAJE PROJEKTU:",null,null,null,null,null,null,null,null,null,null,null,{"$f":"SUM(N31,N24,N18,N12,N6,N30)","v":0},null,null,null,"Kč"]
[null,{"$f":"IF(AND(S38>90,N37<>0),\"POŽADUJETE VYŠŠÍ PODPORU NEŽ 90%!\",\"CELK. VÝŠE POŽADOVANÉ PODPORY Z DaRP:\")","v":"CELK. VÝŠE POŽADOVANÉ PODPORY Z DaRP:"},null,null,null,null,null,null,null,null,null,null,null,{"$f":"SUM(R31,R24,R18,R12,R6,R30)","v":0},null,null,null,"Kč",{"$f":"IF(N37<>0,N38/N37*100,\"-\")","v":"-"},null,"%"]
[null,"Žadatelé, kteří mohou uplatnit odpočet DPH na vstupu, uvádějí výdaje bez DPH. Ostatní uvádějí výdaje včetně DPH."]
[]
[null,"Neuznatelné výdaje - nepovinná položka - pokud je realizace projektu spojena s náklady nad rámec výše uvedených, které jsou z pohledu grantového systému pro DaRP neuznatelné, uveďte povahu těchto nákladů, jejich výši a zdroje jejich pokrytí. Připomínáme, že neuznatelné náklady nelze započíst do spolufinancování."]
[]
[]
[null,"10B. Struktura rozpočtových zdrojů"]
[null,"Požadovaná výše podpory z grantového systému",null,null,null,null,null,null,null,null,null,null,null,{"$f":"N38","v":0},null,null,null,null,null,null,"Kč"]
[null,"Vlastní prostředky žadatele ",null,null,null,null,null,null,null,null,null,null,null,{"$f":"N37-SUM(N45,N48:T53)","v":0},null,null,null,null,null,null,"Kč"]
[null,"Příspěvek obce či jiného subjektu",null,null,null,null,null,null,null,null,null,null,null,null,null,null,null,null,null,null,"Kč"]
[null,"Očekávané příjmy žadatele (účastnické poplatky apod.)",null,null,null,null,null,null,null,null,null,null,null,null,null,null,null,null,null,null,"Kč"]
[null,"Granty, dary",null,null,null,null,null,null,null,null,null,null,null,null,null,null,null,null,null,null,"Kč"]
[null,"Jiné (specifikujte)",null,null,null,null,null,null,null,null,null,null,null,null,null,null,null,null,null,null,"Kč"]
[null,null,null,null,null,null,null,null,null,null,null,null,null,null,null,null,null,null,null,null,"Kč"]
[null,null,null,null,null,null,null,null,null,null,null,null,null,null,null,null,null,null,null,null,"Kč"]
[null,null,null,null,null,null,null,null,null,null,null,null,null,null,null,null,null,null,null,null,"Kč"]
[null,"ROZPOČTOVÉ ZDROJE CELKEM ",null,null,null,null,null,null,null,null,null,null,null,{"$f":"SUM(N45:T53)","v":0},null,null,null,null,null,null,"Kč"]
[]
[null,"Bližší specifikace rozpočtových zdrojů "]
[]
[]
[null,"Do rozpočtových zdrojů nelze zahrnout jiné podpůrné systémy v rámci ČCE (Jeronymova jednota, granty ze seniorátu atp.)!"]

{"sheet":"Oddíl 5 - ZÁVĚR","index":5,"n_rows":59,"n_cols":3,"rows_kept":59,"cut":false,"hidden":false,"merged":[[23,2,23,19],[24,2,24,19],[25,2,25,19],[18,2,18,19],[19,2,19,19],[20,2,20,19],[21,2,21,19],[22,2,22,19],[1,1,1,19],[2,1,2,19],[3,2,3,19],[4,2,4,19],[55,0,56,0],[55,1,55,19],[56,1,56,19],[26,2,26,19],[10,2,10,19],[11,2,11,19],[12,2,12,19],[13,2,13,19],[14,2,14,19],[15,2,15,19],[16,2,16,19],[17,2,17,19],[5,21,6,28],[6,2,6,19],[7,2,7,19],[8,2,8,19],[9,2,9,19],[5,2,5,19],[58,1,58,19],[27,2,27,19],[28,2,28,19],[29,2,29,19],[30,2,30,19],[31,2,31,19]]}
[]
["@^%#8","11. Seznam příloh"]
[null,"Uveďte seznam všech příloh, které k žádosti přikládáte. Přílohy očíslujte. Předepsané, světle šedě podbarvené přílohy (1. - 5.) jsou povinné, další (nepovinné) přílohy uveďte níže (6. a dále)"]
[null,"1.","Kopie dokumentů dokládajících vlastnický nebo dlouhodobý nájemní vztah k nemovitostem a souhlas majitele nemovitosti s provedením staveb či stavebních úprav (pouze v případě projektů zahrnujících stavební práce týkající se nemovitostí)"]
[null,"2.","Aktuální mapa s lokalizací místa realizace projektu (je-li místo realizace projektu odlišné od sídla sboru, který je nositelem nebo spolupředkladatelem projektu)"]
[null,"3.","Písemné potvrzení příslušného sboru ČCE o spolupráci na projektu - (u žádostí podávaných jiným oprávněným žadatelem než sborem ČCE)"]
[null,"4.","Kopie dokumentů prokazujících registraci žadatele a uvádějících rovněž jméno jeho statutárního zástupce (u žádostí podávaných jiným oprávněným žadatelem než sborem ČCE)"]
[null,"5.","Stanovisko seniorátního výboru (u žádostí týkajících se projektů realizovaných farním sborem nebo ve spolupráci s ním)"]
[null,"6."]
[]
[]
[]
[]
[]
[]
[]
[]
[]
[]
[]
[]
[]
[]
[]
[]
[]
[]
[]
[]
[]
[]
[]
[]
["@^%#9"]
[]
[]
[]
[]
[]
[]
[]
[]
[]
[]
[]
[]
[]
[]
[]
[]
[]
[]
[]
[]
[]
[null,"Razítko a podpisy statutárních zástupců žadatele"]
[]
[]
[null,"________________________________________________________________________________"]